bitfinex-derivatives/quotes_SOLF0:USTF0_20250311
["timestamp","ask_amount","ask_price","bid_price","bid_amount"]
[1741653455506,8.739,114.48,114.39,8.7452]
[1741653455710,0.06635581,114.49,114.38,1.74855744]
[1741653455921,59.08306556,114.5,114.38,1.74855744]
[1741653456110,8.7393,114.47,114.42,0.06592286]
[1741653456411,0.06571441,114.45,114.42,0.06592286]
[1741653456611,0.06571441,114.45,114.38,1.74855744]
[1741653456818,0.06571441,114.45,114.42,0.05669486]
[1741653457019,288.26,114.52,114.42,0.05669486]
[1741653457312,0.05538232,114.45,114.42,0.05669486]
[1741653457518,59.08306556,114.54,114.42,2.62]
[1741653457816,347.34306556,114.58,114.42,0.05702154]
[1741653458118,347.34306556,114.58,114.42,4.29]
[1741653458615,8.7357,114.52,114.44,8.7413]
[1741653458817,0.06437297,114.51,114.49,0.05951781]
[1741653459214,347.34306556,114.58,114.42,4.29]
[1741653459622,0.06625467,114.51,114.49,0.05662846]
[1741653459915,0.06625467,114.51,114.42,4.29]
[1741653460115,59.08306556,114.54,114.38,1.74855744]
[1741653460317,59.08306556,114.54,114.4,8.7443]
[1741653460618,59.08306556,114.54,114.39,4.2993]
[1741653460913,59.08306556,114.54,114.39,13.0445]
[1741653461115,59.08306556,114.54,114.45,0.06603531]
[1741653461318,0.05979489,114.48,114.45,0.06603531]
[1741653461513,0.05979489,114.48,114.38,1.74855744]
[1741653461514,347.32306556,114.5,114.37,8.5014]
[1741653462013,59.08306556,114.46,114.37,8.5014]
[1741653462616,59.08306556,114.46,114.29,288.24]
[1741653462817,0.05728329,114.43,114.4,0.06082459]
[1741653463019,288.24,114.43,114.3,8.9021]
[1741653463218,8.7467,114.38,114.31,8.7508]
[1741653463413,59.08306556,114.42,114.3,8.9021]
[1741653463609,59.08306556,114.42,114.3,17.6537]
[1741653463819,59.08306556,114.38,114.23,288.24]
[1741653464014,59.08306556,114.38,114.24,8.981]
[1741653464323,46.94941496,114.31,114.29,0.06565546]
[1741653464816,46.94941496,114.3,114.1,288.32]
[1741653465029,46.94941496,114.25,114.15,8.981]
[1741653465323,46.94941496,114.21,114.15,8.981]
[1741653465617,46.94941496,114.19,114.11,8.766]
[1741653465822,46.94941496,114.19,114.07,13.0138]
[1741653466122,46.94941496,114.17,114.07,13.0138]
[1741653466326,46.94941496,114.15,114.12,0.05330136]
[1741653466622,46.94941496,114.17,114.12,0.05330136]
[1741653466821,0.06346169,114.13,114.12,8.81900136]
[1741653467119,46.94941496,114.13,114.07,8.9119]
[1741653467617,46.94941496,114.19,114.07,8.9119]
[1741653467818,8.7615,114.18,114.07,8.9119]
[1741653468019,46.94941496,114.15,114.07,8.9119]
[1741653468429,0.05712256,114.12,114.1,0.05525409]
[1741653468921,46.94941496,114.21,114.1,2.62]
[1741653469123,0.06679493,114.12,114.1,0.05754981]
[1741653469613,46.94941496,114.15,114.07,8.9119]
[1741653469817,0.06568066,114.12,114.1,0.06180939]
[1741653470214,46.94941496,114.11,114.1,0.00350939]
[1741653470419,0.06568066,114.12,114.1,0.00350939]
[1741653470721,46.94941496,114.11,114.01,4.1019]
[1741653470922,55.71681496,114.11,114.01,4.1019]
[1741653471122,46.94941496,114.13,114.01,4.1019]
[1741653471821,46.94941496,114.11,114.01,4.1019]
[1741653472016,8.7705,114.07,114.0,8.7751]
[1741653472221,8.7705,114.07,113.98,8.3822]
[1741653472222,46.94941496,114.07,113.98,8.3822]
[1741653472826,0.06177425,114.04,113.98,8.3822]
[1741653473024,47.01118921,114.04,113.98,8.3822]
[1741653473430,47.01118921,114.04,113.92,46.94941496]
[1741653473823,46.94941496,114.02,113.91,55.25201496]
[1741653474224,0.05937146,113.99,113.91,8.3026]
[1741653474619,46.94941496,114.0,113.91,8.3026]
[1741653474825,46.94941496,113.98,113.91,8.3026]
[1741653475026,0.06219298,113.96,113.87,46.94941496]
[1741653475224,46.94941496,113.92,113.8,46.94941496]
[1741653475428,46.94941496,113.94,113.82,46.94941496]
[1741653475627,8.7845,113.88,113.81,8.7892]
[1741653475826,0.06666263,113.87,113.84,46.94941496]
[1741653476029,0.06666263,113.87,113.77,12.5962]
[1741653476030,0.06666263,113.87,113.82,46.94941496]
[1741653476329,336.02941496,113.93,113.82,46.94941496]
[1741653476531,0.06332048,113.86,113.8,46.94941496]
[1741653476921,336.02941496,113.93,113.8,46.94941496]
[1741653477232,0.05978686,113.84,113.8,46.94941496]
[1741653477429,289.08,113.93,113.82,93.89882992]
[1741653477627,46.94941496,113.97,113.82,46.94941496]
[1741653477823,4.1348,113.99,113.82,46.94941496]
[1741653478030,4.1348,113.99,113.88,46.94941496]
[1741653478331,4.1348,113.99,113.9,46.94941496]
[1741653478531,4.1348,113.99,113.88,46.94941496]
[1741653478723,0.05793593,113.95,113.92,0.05963475]
[1741653479134,0.05793593,113.95,113.89,4.1379]
[1741653479334,0.05793593,113.95,113.9,46.94941496]
[1741653479528,0.05793593,113.95,113.92,0.06090176]
[1741653481335,46.94941496,114.01,113.92,0.06090176]
[1741653481735,46.94941496,113.99,113.89,4.1379]
[1741653481931,46.94941496,113.97,113.89,4.1379]
[1741653482131,46.94941496,113.95,113.89,4.1379]
[1741653482432,8.7812,113.93,113.85,4.2909]
[1741653482633,0.06373888,113.94,113.92,0.0667142]
[1741653482934,46.94941496,113.95,113.85,4.2909]
[1741653483136,0.06610406,113.94,113.92,0.0618863]
[1741653483433,8.7853,113.87,113.84,4.0668]
[1741653483638,46.94941496,113.92,113.84,4.0668]
[1741653483936,289.38,113.94,113.84,51.01621496]
[1741653484131,46.94941496,113.99,113.86,46.94941496]
[1741653484334,46.94941496,113.99,113.88,46.94941496]
[1741653484737,0.05944064,113.94,113.91,0.058401]
[1741653484934,46.94941496,114.03,113.9,46.92142537]
[1741653485136,46.94941496,114.03,113.92,46.94941496]
[1741653485332,46.94941496,114.08,113.96,46.94941496]
[1741653485537,46.94941496,114.09,113.96,46.94941496]
[1741653485839,46.94941496,114.01,113.93,4.0643]
[1741653486035,46.94941496,114.05,113.94,46.94941496]
[1741653486235,46.94941496,114.09,113.96,47.00991551]
[1741653486643,46.94941496,114.07,113.94,52.88502477]
[1741653486840,46.94941496,114.05,113.94,5.93560981]
[1741653487041,46.94941496,114.03,113.93,4.0643]
[1741653487345,46.94941496,113.99,113.89,4.3023]
[1741653487547,46.94941496,114.01,113.89,51.25171496]
[1741653487847,47.01138245,113.99,113.97,0.06070964]
[1741653488034,46.94941496,113.99,113.89,4.3023]
[1741653488235,46.94941496,113.92,113.8,46.94941496]
[1741653488440,46.94941496,113.96,113.84,46.94941496]
[1741653488841,46.94941496,113.94,113.82,46.94941496]
[1741653489241,0.06210103,113.9,113.87,0.06189008]
[1741653489640,46.94941496,113.98,113.87,49.65130504]
[1741653489842,289.44,114.04,113.89,46.94941496]
[1741653490042,289.54,114.09,113.91,46.94941496]
[1741653490241,8.7736,114.03,113.96,8.7781]
[1741653490454,46.94941496,114.03,113.91,46.94941496]
[1741653490641,289.54,114.09,113.93,46.94941496]
[1741653490841,46.94941496,114.07,113.95,46.94941496]
[1741653491041,46.94941496,114.07,113.97,46.94941496]
[1741653491237,336.48941496,114.09,113.99,46.94941496]
[1741653491453,46.94941496,114.11,114.01,46.94941496]
[1741653491750,46.94941496,114.08,113.97,4.3737]
[1741653491943,46.94941496,114.04,113.97,4.3737]
[1741653492145,46.94941496,114.04,113.96,4.479]
[1741653492646,46.94941496,114.0,113.9,51.42841496]
[1741653492850,8.7807,113.93,113.9,4.479]
[1741653493039,289.54,113.99,113.84,4.479]
[1741653493343,8.7807,113.93,113.87,8.7852]
[1741653493548,4.1756,113.98,113.89,46.94941496]
[1741653493751,46.94941496,114.0,113.87,46.94941496]
[1741653493943,0.05783637,113.95,113.92,0.06539072]
[1741653494247,46.94941496,113.94,113.84,4.479]
[1741653494453,46.94941496,113.92,113.72,289.52]
[1741653494651,46.94941496,113.9,113.77,8.575]
[1741653494947,8.7874,113.85,113.77,17.3678]
[1741653495143,46.94941496,113.84,113.77,4.4751]
[1741653495348,46.94941496,113.86,113.77,4.4751]
[1741653495841,46.94941496,113.84,113.72,46.94941496]
[1741653496047,289.52,113.88,113.73,63.28283521]
[1741653496245,289.52,113.88,113.76,63.28283521]
[1741653496444,63.28283521,113.92,113.79,63.28283521]
[1741653496651,63.28283521,113.96,113.82,63.28283521]
[1741653496839,63.28283521,113.96,113.83,8.432]
[1741653497043,63.28283521,113.96,113.83,71.71483521]
[1741653497339,289.66,113.98,113.86,63.28283521]
[1741653497544,63.28283521,113.93,113.83,8.432]
[1741653497957,63.28283521,113.96,113.83,71.71483521]
[1741653498147,289.66,113.98,113.83,71.71483521]
[1741653498148,289.66,113.98,113.87,0.05964386]
[1741653498545,8.7793,113.95,113.87,8.7852]
[1741653498840,289.66,113.98,113.88,63.28283521]
[1741653499448,0.05996104,113.94,113.92,0.05760538]
[1741653499651,8.84046104,113.94,113.87,8.7848]
[1741653499847,63.34279625,113.94,113.83,8.432]
[1741653500145,8.7852,113.88,113.79,63.28283521]
[1741653500351,63.28283521,113.91,113.79,63.28283521]
[1741653500652,4.3764,113.97,113.84,8.84588194]
[1741653500653,63.28283521,113.94,113.84,8.84588194]
[1741653500852,63.28283521,113.94,113.84,0.05838194]
[1741653501149,67.65923521,113.97,113.85,63.28283521]
[1741653501350,8.7831,113.9,113.84,0.05838194]
[1741653501554,0.06338215,113.92,113.83,63.28283521]
[1741653501850,47.56341613,113.93,113.86,0.05838194]
[1741653502048,0.05962179,113.89,113.86,63.34121715]
[1741653502248,0.05962179,113.89,113.86,63.28283521]
[1741653502449,0.05962179,113.89,113.86,63.34121715]
[1741653502750,0.05962179,113.89,113.86,0.05838194]
[1741653503447,0.05962179,113.89,113.77,4.106]
[1741653503753,63.28283521,113.85,113.73,63.28283521]
[1741653503945,8.789,113.83,113.72,63.28283521]
[1741653504146,63.28283521,113.88,113.75,63.28283521]
[1741653504451,63.28283521,113.91,113.78,63.28283521]
[1741653504648,63.28283521,113.91,113.82,8.789]
[1741653504953,331.27710997,113.93,113.81,63.28283521]
[1741653505145,41.59710997,113.93,113.84,63.28283521]
[1741653505852,0.06614839,113.9,113.87,0.05674998]
[1741653506151,8.7845,113.88,113.87,0.05674998]
[1741653506541,0.06614839,113.9,113.87,0.05674998]
[1741653507244,77.56838677,113.94,113.88,63.28283521]
[1741653507552,70.81718677,113.94,113.91,63.28283521]
[1741653507854,70.81718677,113.94,113.88,67.63863521]
[1741653508750,70.81718677,113.94,113.84,4.4129]
[1741653509051,63.28283521,113.93,113.79,63.28283521]
[1741653509255,0.06643498,113.9,113.79,63.28283521]
[1741653509451,63.28283521,113.9,113.76,298.2394]
[1741653509755,63.28283521,113.87,113.76,298.2394]
[1741653510055,63.28283521,113.87,113.76,4.1265]
[1741653510461,67.51983521,113.89,113.76,4.1265]
[1741653510650,0.0584967,113.83,113.8,0.06269756]
[1741653510853,0.0584967,113.83,113.74,63.28283521]
[1741653510854,0.0584967,113.83,113.72,65.0415408]
[1741653511157,63.28283521,113.85,113.73,4.3793]
[1741653511350,67.51983521,113.89,113.75,63.28283521]
[1741653511654,79.11197454,113.89,113.75,63.28283521]
[1741653512051,0.06163587,113.83,113.78,63.28283521]
[1741653512555,0.06163587,113.83,113.75,63.28283521]
[1741653512953,8.7868,113.85,113.78,72.07453521]
[1741653513153,5.294e-05,113.8,113.78,63.28283521]
[1741653513457,15.82913933,113.89,113.78,63.28283521]
[1741653513853,11.59213933,113.89,113.81,63.28283521]
[1741653514054,95.92340481,113.91,113.87,63.28283521]
[1741653514252,47.88340481,113.91,113.82,63.28283521]
[1741653514456,239.93678707,113.96,113.9,63.28283521]
[1741653514649,299.92098384,113.98,113.95,63.28283521]
[1741653514855,236.6571892,113.98,113.97,8.7775]
[1741653515055,67.12251294,113.98,113.97,11.4175]
[1741653515251,5.22711294,113.98,113.97,11.4175]
[1741653515451,81.23397443,114.02,113.97,2.64]
[1741653515655,81.23397443,114.02,113.99,63.28283521]
[1741653515852,65.16317443,114.02,113.99,63.28283521]
[1741653516056,48.93397443,114.02,114.01,8.7744]
[1741653516654,0.05577426,114.03,114.0,0.0611963]
[1741653517151,295.0,114.29,114.02,126.56567042]
[1741653517355,8.6192,114.16,114.06,63.28283521]
[1741653517553,4.367,114.15,114.06,63.28283521]
[1741653517752,4.367,114.15,114.03,63.28283521]
[1741653517957,4.367,114.15,114.14,219.16154587]
[1741653518155,15.7507,114.15,114.14,69.70614587]
[1741653518355,15.7507,114.15,114.14,34.01304587]
[1741653518552,4.367,114.15,114.14,34.01304587]
[1741653518750,0.05780559,114.16,114.14,34.01304587]
[1741653518957,8.6661,114.22,114.14,97.29588108]
[1741653519560,8.6661,114.22,114.14,34.01304587]
[1741653519857,71.94893521,114.22,114.14,34.01304587]
[1741653520049,8.6661,114.22,114.14,63.28283521]
[1741653520251,0.06679129,114.19,114.17,0.06172227]
[1741653520764,63.28283521,114.32,114.17,355.44455748]
[1741653520956,12.6257,114.3,114.21,63.28283521]
[1741653521356,12.6257,114.3,114.24,8.7564]
[1741653521556,12.6257,114.3,114.21,63.28283521]
[1741653521756,12.6257,114.3,114.24,8.7566]
[1741653522058,0.06180699,114.27,114.24,0.05958375]
[1741653522363,63.28283521,114.38,114.24,63.34241896]
[1741653522662,63.28283521,114.38,114.24,63.28283521]
[1741653522663,4.2939,114.34,114.24,63.28283521]
[1741653522863,4.2939,114.34,114.21,289.48]
[1741653522864,63.28283521,114.33,114.21,63.28283521]
[1741653523061,63.28283521,114.3,114.18,63.28283521]
[1741653523258,63.28283521,114.27,114.15,496.37279339]
[1741653523460,8.7576,114.23,114.15,496.37279339]
[1741653523755,63.28283521,114.24,114.12,63.28283521]
[1741653523957,63.28283521,114.24,114.09,352.54283521]
[1741653524158,63.28283521,114.17,114.07,93.68475818]
[1741653524359,63.28283521,114.17,113.92,72.06423521]
[1741653524360,126.56567042,114.1,113.92,72.06423521]
[1741653524559,63.28283521,114.04,113.98,382.81958162]
[1741653524759,63.28283521,114.04,114.03,0.05945568]
[1741653524963,65.92283521,114.04,113.98,382.81958162]
[1741653525163,63.28283521,114.04,113.98,382.81958162]
[1741653526066,8.7752,114.0,113.98,382.81958162]
[1741653526265,63.28283521,114.01,113.98,382.81958162]
[1741653526465,63.28283521,114.01,113.98,369.19803573]
[1741653526763,63.28283521,114.03,113.98,369.19803573]
[1741653526970,63.28283521,114.0,113.98,369.19803573]
[1741653527163,8.776,113.99,113.98,2.94698567]
[1741653527372,65.92283521,114.0,113.89,289.26]
[1741653527563,63.28283521,113.97,113.89,289.26]
[1741653527763,63.28283521,113.97,113.86,1.7681]
[1741653527969,63.28283521,113.97,113.86,65.05093521]
[1741653528172,63.28283521,114.0,113.86,65.05093521]
[1741653528469,63.28283521,114.03,113.89,63.28283521]
[1741653528774,63.28283521,114.04,113.92,63.34634932]
[1741653529076,63.28283521,114.01,113.91,289.34]
[1741653529472,141.3773608,114.03,113.91,352.62283521]
[1741653529672,63.28283521,114.01,113.91,352.62283521]
[1741653529874,0.05775264,113.98,113.96,0.06436727]
[1741653530672,473.53464529,113.97,113.86,1.7681]
[1741653530871,63.28283521,113.95,113.86,1.7681]
[1741653531072,63.28283521,113.95,113.82,63.28283521]
[1741653531480,141.60076527,113.94,113.83,8.7883]
[1741653531676,0.06026575,113.9,113.87,0.06140925]
[1741653531877,141.60076527,113.94,113.87,63.34424446]
[1741653532078,141.60076527,113.94,113.9,63.28283521]
[1741653532274,134.85126527,113.94,113.9,63.28283521]
[1741653532780,134.85126527,113.94,113.87,71.97213521]
[1741653533178,0.05715773,113.92,113.89,0.06067989]
[1741653534680,0.05715773,113.92,113.85,53.15921849]
[1741653535178,39.62953623,113.96,113.88,8.7844]
[1741653535379,39.62953623,113.96,113.83,53.15921849]
[1741653535380,39.62953623,113.96,113.85,53.15921849]
[1741653535572,39.62953623,113.96,113.83,53.15921849]
[1741653535777,39.62953623,113.96,113.87,53.15921849]
[1741653535976,0.0557961,113.92,113.89,0.06665997]
[1741653536482,0.0557961,113.92,113.89,0.06479757]
[1741653537076,94.48480153,113.94,113.89,53.22401606]
[1741653537777,294.98191264,114.0,113.89,53.22401606]
[1741653537778,53.11884761,113.99,113.89,0.06479757]
[1741653537982,53.11884761,113.97,113.89,0.06479757]
[1741653538178,53.11884761,113.97,113.84,53.11884761]
[1741653538374,0.06317293,113.94,113.92,0.06340492]
[1741653538580,0.06317293,113.94,113.8,289.54]
[1741653538581,53.11884761,113.95,113.84,53.11884761]
[1741653538878,53.11884761,113.93,113.92,0.05532996]
[1741653539079,53.11884761,113.93,113.8,342.65884761]
[1741653539280,53.11884761,113.94,113.82,53.11884761]
[1741653539479,53.11884761,113.92,113.8,342.65884761]
[1741653539981,53.18823988,113.92,113.8,342.72823988]
[1741653540378,0.06500939,113.87,113.85,0.05780297]
[1741653540782,53.18823988,113.96,113.85,53.18823988]
[1741653540985,53.18823988,113.98,113.87,53.18823988]
[1741653541175,88.64250828,114.0,113.93,8.78]
[1741653541483,88.64250828,114.0,113.89,53.18823988]
[1741653541677,35.4542684,114.0,113.91,53.18823988]
[1741653541877,35.4542684,114.0,113.93,53.18823988]
[1741653542277,35.4542684,114.03,113.95,0.05735167]
[1741653542482,53.18823988,114.0,113.95,0.05735167]
[1741653542685,53.18823988,113.98,113.91,4.4189]
[1741653542883,53.18823988,114.02,113.91,4.4189]
[1741653543078,35.4542684,114.03,113.94,53.18823988]
[1741653543482,35.4542684,114.03,113.91,4.4189]
[1741653543683,35.4542684,114.03,113.97,0.06592312]
[1741653543684,0.06698395,114.0,113.97,0.06592312]
[1741653543887,61.96503988,113.98,113.97,0.00655759]
[1741653544189,0.06698395,114.0,113.9,53.18823988]
[1741653544389,0.06698395,114.0,113.94,53.18823988]
[1741653544580,35.4542684,114.03,113.94,53.18823988]
[1741653544784,294.98191264,114.1,114.02,53.18823988]
[1741653545088,289.6,114.29,114.02,53.18823988]
[1741653545089,68.48340551,114.11,114.1,8.7675]
[1741653545389,275.34351838,114.13,114.1,53.18823988]
[1741653545587,9.941e-05,114.12,114.1,55.80823988]
[1741653545785,359.5458159,114.15,114.12,53.18823988]
[1741653545991,296.69703143,114.15,114.14,53.18823988]
[1741653546289,196.81323733,114.15,114.14,61.95263988]
[1741653546477,140.84306051,114.15,114.14,64.57263988]
[1741653546888,140.84306051,114.15,114.14,61.95263988]
[1741653547084,140.84306051,114.15,114.14,64.57263988]
[1741653547295,140.84306051,114.15,114.13,0.06518171]
[1741653548187,0.06652803,114.16,114.13,0.06518171]
[1741653548891,0.06652803,114.16,114.13,55.87342159]
[1741653549089,289.4,114.35,114.15,53.18823988]
[1741653549284,53.18823988,114.31,114.2,53.18823988]
[1741653549484,53.18823988,114.29,114.18,53.18823988]
[1741653549684,13.1427,114.32,114.13,53.18823988]
[1741653549884,61.94043988,114.3,114.18,53.18823988]
[1741653550188,66.33093988,114.32,114.2,53.18823988]
[1741653550385,13.1427,114.32,114.22,53.18823988]
[1741653550594,0.06744406,114.25,114.23,0.05822884]
[1741653550780,8.8213,114.32,114.22,53.18823988]
[1741653550983,8.8213,114.32,114.24,53.18823988]
[1741653551180,0.06208156,114.25,114.24,53.18823988]
[1741653551489,4.406,114.32,114.24,53.18823988]
[1741653551691,0.06500359,114.26,114.24,53.18823988]
[1741653551992,57.62183988,114.4,114.24,108.99647976]
[1741653552192,53.18823988,114.36,114.24,53.18823988]
[1741653552991,53.18823988,114.34,114.24,53.18823988]
[1741653553186,0.06361173,114.31,114.29,0.06658891]
[1741653553391,0.06361173,114.31,114.2,342.40823988]
[1741653553685,8.81511173,114.31,114.2,342.40823988]
[1741653553886,8.81511173,114.31,114.18,53.18823988]
[1741653553887,53.18823988,114.3,114.18,53.18823988]
[1741653554083,53.18823988,114.28,114.16,53.18823988]
[1741653554291,57.32523988,114.3,114.14,1.75223409]
[1741653554591,0.05656346,114.23,114.21,0.05738297]
[1741653554784,53.18823988,114.22,114.1,53.18823988]
[1741653554985,53.18823988,114.2,114.08,53.18823988]
[1741653555181,53.18823988,114.2,114.08,54.94139556]
[1741653555582,4.192,114.21,114.1,53.18823988]
[1741653555896,4.192,114.21,114.08,1.75315568]
[1741653555897,4.192,114.21,114.14,53.18823988]
[1741653556093,0.05635779,114.17,114.14,0.0657194]
[1741653556386,0.05635779,114.17,114.07,289.08]
[1741653556584,53.18823988,114.12,114.0,53.18823988]
[1741653556784,4.3766,114.11,114.02,53.18823988]
[1741653557192,57.56483988,114.11,114.0,53.18823988]
[1741653557387,57.56483988,114.11,113.98,53.18823988]
[1741653557694,53.25500562,114.07,113.96,53.18823988]
[1741653558192,57.56483988,114.11,113.98,53.18823988]
[1741653558390,57.56483988,114.11,114.0,53.18823988]
[1741653558789,57.56483988,114.11,113.96,1.75500175]
[1741653558990,53.18823988,114.06,113.96,1.75500175]
[1741653559200,53.18823988,114.04,113.96,1.75500175]
[1741653559387,4.3766,114.11,114.01,53.18823988]
[1741653559585,53.18823988,114.13,114.01,53.18823988]
[1741653559793,53.18823988,114.15,114.03,53.18823988]
[1741653560092,4.1974,114.23,114.1,53.18823988]
[1741653560394,4.1974,114.23,114.13,53.18823988]
[1741653560591,4.154,114.27,114.16,53.18823988]
[1741653561093,346.52223988,114.27,114.2,0.05774506]
[1741653561493,293.334,114.27,114.15,53.18823988]
[1741653561692,4.154,114.27,114.17,53.18823988]
[1741653561884,4.154,114.27,114.19,53.18823988]
[1741653562090,0.06015726,114.22,114.2,0.0638981]
[1741653562389,0.06015726,114.22,114.12,53.18823988]
[1741653562593,53.18823988,114.23,114.12,53.18823988]
[1741653562989,289.12,114.25,114.09,53.18823988]
[1741653562990,8.7616,114.18,114.09,53.18823988]
[1741653563189,53.18823988,114.18,114.06,53.18823988]
[1741653563395,4.3099,114.17,114.1,53.18823988]
[1741653563592,4.2633,114.24,114.14,53.18823988]
[1741653563790,4.2633,114.24,114.18,53.18823988]
[1741653563995,8.7561,114.25,114.15,53.18823988]
[1741653564192,4.2633,114.26,114.16,53.18823988]
[1741653564398,342.30823988,114.31,114.18,53.18823988]
[1741653564594,53.18823988,114.27,114.16,53.18823988]
[1741653564796,53.18823988,114.29,114.11,289.12]
[1741653564797,53.18823988,114.25,114.14,53.18823988]
[1741653564997,53.18823988,114.25,114.11,289.12]
[1741653564998,53.18823988,114.23,114.12,53.18823988]
[1741653565299,53.18823988,114.21,114.18,0.06406908]
[1741653565502,53.18823988,114.19,114.08,53.18823988]
[1741653565697,53.18823988,114.17,114.04,53.18823988]
[1741653566197,53.18823988,114.17,114.07,53.18823988]
[1741653566390,53.18823988,114.19,114.07,53.18823988]
[1741653566793,0.06144711,114.13,114.11,0.05738104]
[1741653567192,0.06144711,114.13,114.03,54.94216428]
[1741653567193,8.7677,114.1,114.03,1.7539244]
[1741653567398,53.18823988,114.11,114.0,53.18823988]
[1741653567598,53.18823988,114.11,113.98,53.18823988]
[1741653567798,4.186,114.1,113.98,53.18823988]
[1741653567999,4.186,114.1,114.03,53.18823988]
[1741653568302,4.1391,114.14,114.05,52.96880409]
[1741653568494,0.05612485,114.08,114.05,0.0634203]
[1741653568893,8.7691,114.08,114.0,52.96880409]
[1741653569096,0.06100852,114.08,114.05,0.05558769]
[1741653569504,52.96880409,114.11,114.05,0.05558769]
[1741653569705,52.96880409,114.07,113.96,52.96880409]
[1741653569905,0.06448948,114.08,113.96,52.96880409]
[1741653570101,0.06448948,114.08,114.01,52.96880409]
[1741653570301,4.186,114.1,114.01,52.96880409]
[1741653570702,4.186,114.1,114.03,52.96880409]
[1741653570904,52.96880409,114.18,114.05,52.96880409]
[1741653571099,4.3474,114.18,114.09,52.96880409]
[1741653571299,0.05998142,114.11,114.07,52.96880409]
[1741653571601,0.05998142,114.11,114.03,52.96880409]
[1741653571802,0.05998142,114.11,114.05,52.96880409]
[1741653572002,52.96880409,114.14,114.03,52.96880409]
[1741653572405,0.05958601,114.09,114.03,52.96880409]
[1741653572603,0.05958601,114.09,114.05,52.96880409]
[1741653572802,57.31620409,114.18,114.07,52.96880409]
[1741653572999,52.96880409,114.16,114.05,52.96880409]
[1741653573598,52.96880409,114.07,113.97,1.75484776]
[1741653573798,52.96880409,114.04,113.97,1.75484776]
[1741653574107,0.06247226,114.03,113.92,53.07540852]
[1741653574498,61.84810852,114.04,113.95,8.7789]
[1741653574698,53.07540852,114.04,113.94,53.07540852]
[1741653574897,61.93330852,114.06,113.94,53.07540852]
[1741653575106,4.4648,114.06,113.98,53.07540852]
[1741653575301,0.06185155,114.01,113.98,53.07540852]
[1741653575509,0.06185155,114.01,113.96,53.07540852]
[1741653575708,0.06185155,114.01,113.94,53.07540852]
[1741653575903,53.07540852,114.02,113.92,343.97102649]
[1741653576208,0.05975815,113.99,113.92,54.83102649]
[1741653576405,0.05975815,113.99,113.94,8.7796]
[1741653576703,0.05601015,113.98,113.92,1.75561797]
[1741653576911,8.7776,113.97,113.92,1.75561797]
[1741653577109,53.07540852,113.96,113.84,53.07540852]
[1741653577306,53.07540852,113.94,113.84,53.07540852]
[1741653577511,0.06141078,113.91,113.84,53.07540852]
[1741653577809,57.30810852,113.96,113.84,53.07540852]
[1741653578310,0.06551257,113.89,113.84,53.07540852]
[1741653578507,0.06551257,113.89,113.82,53.07540852]
[1741653578707,0.06551257,113.89,113.8,342.31540852]
[1741653579010,53.07540852,113.9,113.8,289.24]
[1741653579209,0.06218638,113.86,113.82,53.07540852]
[1741653579410,0.06218638,113.86,113.84,53.07540852]
[1741653579800,4.2327,113.96,113.84,55.71540852]
[1741653580001,57.30810852,113.96,113.85,53.07540852]
[1741653580203,13.0116,113.96,113.86,8.7858]
[1741653580612,4.2327,113.96,113.87,53.07540852]
[1741653580809,4.0949,113.98,113.91,53.07540852]
[1741653581207,4.0949,113.98,113.9,0.06714386]
[1741653581405,4.0949,113.98,113.89,53.07540852]
[1741653581610,57.17030852,113.98,113.85,53.07540852]
[1741653581809,8.7805,113.94,113.85,53.07540852]
[1741653582015,53.07540852,113.96,113.85,53.07540852]
[1741653582217,53.07540852,113.94,113.83,53.07540852]
[1741653582416,0.06362126,113.92,113.89,0.06479811]
[1741653582709,53.07540852,113.94,113.89,0.06479811]
[1741653582910,8.7816,113.92,113.89,0.06479811]
[1741653583117,0.06167547,113.92,113.89,0.06479811]
[1741653586113,8.7827,113.91,113.89,0.06479811]
[1741653586315,0.06167547,113.92,113.81,53.07540852]
[1741653586515,8.84357547,113.92,113.84,8.7869]
[1741653586817,53.07540852,113.93,113.81,53.07540852]
[1741653587011,8.7837,113.89,113.79,53.07540852]
[1741653587211,53.07540852,113.91,113.79,53.07540852]
[1741653587421,53.07540852,113.89,113.77,53.07540852]
[1741653587712,0.05548637,113.86,113.77,53.07540852]
[1741653587912,0.05548637,113.86,113.79,53.07540852]
[1741653588108,53.07540852,113.93,113.79,53.07540852]
[1741653588314,53.07540852,113.93,113.81,53.07540852]
[1741653588515,53.07540852,113.95,113.83,53.07540852]
[1741653589021,0.06734392,113.9,113.83,53.07540852]
[1741653589515,53.07540852,113.93,113.79,53.07540852]
[1741653589516,0.05540765,113.88,113.79,53.07540852]
[1741653589709,0.05540765,113.88,113.77,53.07540852]
[1741653589911,4.478,113.88,113.77,53.07540852]
[1741653590219,8.7884,113.83,113.76,289.54]